[Event "GCT Superbet Blitz Poland 2025"]
[Site "Warsaw"]
[Date "2025.04.30"]
[Round "16"]
[White "Praggnanandhaa R"]
[Black "Topalov, Veselin"]
[Result "1-0"]
[ECO "A30"]
[WhiteElo "2758"]
[BlackElo "2717"]
[Annotator "ChessBase"]
[PlyCount "95"]
[EventDate "2025.??.??"]
[EventType "blitz"]
[TimeControl "300+2"]

1. b3 {[%emt 0:00:01]} Nf6 {[%emt 0:00:02]} 2. Bb2 {[%emt 0:00:00]} c5 {[%emt 0:00:02]} 3. c4 {[%emt 0:00:03]} e6 {[%emt 0:00:03]} 4. Nf3 {[%emt 0:00:05]} b6 {[%emt 0:00:01]} 5. g3 {[%emt 0:00:04]} Bb7 {[%emt 0:00:01]} 6. Bg2 {[%emt 0:00:01]} Be7 {[%emt 0:00:01]} 7. O-O {[%emt 0:00:03]} O-O {[%emt 0:00:01]} 8. d4 {[%emt 0:00:01]} cxd4 {[%emt 0:00:01]} 9. Qxd4 {[%emt 0:00:13]} d6 {[%emt 0:00:05]} 10. Nc3 {[%emt 0:00:05]} a6 {[%emt 0:00:10]} 11. Rfd1 {[%emt 0:00:15]} Nbd7 {[%emt 0:00:02]} 12. e4 {[%emt 0:00:06]} Qc7 {[%emt 0:00:01]} 13. Qe3 {[%emt 0:00:06]} Rfe8 {[%emt 0:00:11]} 14. Rac1 {[%emt 0:00:02]} Rad8 {[%emt 0:00:06]} 15. Nd4 {[%emt 0:00:19]} Bf8 {[%emt 0:00:06]} 16. Re1 {[%emt 0:00:19]} Qb8 {[%emt 0:00:03]} 17. h3 {[%emt 0:00:05]} g6 {[%emt 0:00:09]} 18. Rcd1 {[%emt 0:00:22]} Ba8 $146 {[%emt 0:00:07]} ({RR} 18... Bg7 19. Nc2 Nc5 {½-½ (19) Liberzon,V (2545)-Ermenkov,E (2495) Skara 1980}) 19. g4 {[%emt 0:00:25]} Bg7 {[%emt 0:00:18]} 20. Qg3 {[%emt 0:00:05]} Nc5 {[%emt 0:00:08]} 21. Ba1 {[%emt 0:00:15]} e5 {[%emt 0:00:48]} 22. Nc2 {[%emt 0:00:06]} Ne6 {[%emt 0:00:12]} 23. Bb2 {[%emt 0:00:10]} Bh6 {[%emt 0:00:20]} 24. h4 {[%emt 0:00:23]} Bf4 {[%emt 0:00:41]} 25. Qh3 {[%emt 0:00:03]} Bb7 {[%emt 0:00:07]} 26. Nb4 {[%emt 0:00:10]} g5 {[%emt 0:00:06]} 27. Nbd5 {[%emt 0:00:28]} Bxd5 {[%emt 0:00:03]} 28. exd5 {[%emt 0:00:19]} Nd4 {[%emt 0:00:18]} 29. hxg5 {[%emt 0:00:08]} Bxg5 {[%emt 0:00:01]} 30. Ne4 {[%emt 0:00:06]} Nxe4 {[%emt 0:00:04]} 31. Bxe4 {[%emt 0:00:02]} h6 {[%emt 0:00:06]} 32. Kg2 {[%emt 0:00:12]} Kg7 {[%emt 0:00:01]} 33. Rxd4 {[%emt 0:00:09]} exd4 {[%emt 0:00:02]} 34. Bxd4+ {[%emt 0:00:01]} Kf8 {[%emt 0:00:27]} 35. Qf3 {[%emt 0:00:09]} Re5 {[%emt 0:00:10]} 36. Bxe5 {[%emt 0:00:17]} dxe5 {[%emt 0:00:02]} 37. Qf5 {[%emt 0:00:02]} Qd6 {[%emt 0:00:04]} 38. Bd3 {[%emt 0:00:06]} Bf4 {[%emt 0:00:01]} 39. g5 {[%emt 0:00:05]} hxg5 {[%emt 0:00:03]} 40. Rh1 {[%emt 0:00:01]} Ke7 {[%emt 0:00:03]} 41. Rh7 {[%emt 0:00:02]} Rf8 {[%emt 0:00:03]} 42. Qh3 {[%emt 0:00:03]} Qf6 {[%emt 0:00:15]} 43. b4 {[%emt 0:00:04]} e4 {[%emt 0:00:22]} 44. Bxe4 {[%emt 0:00:03]} Qe5 {[%emt 0:00:00]} 45. Bf3 {[%emt 0:00:10]} Qd4 {[%emt 0:00:25]} 46. Qe6+ {[%emt 0:00:04]} Kd8 {[%emt 0:00:01]} 47. Rxf7 {[%emt 0:00:12]} Rh8 48. Qd7# {[%emt 0:00:02]} 1-0

[Event "GCT Superbet Blitz Poland 2025"]
[Site "Warsaw"]
[Date "2025.04.30"]
[Round "16"]
[White "Aravindh, Chithambaram VR."]
[Black "Firouzja, Alireza"]
[Result "0-1"]
[ECO "A49"]
[WhiteElo "2749"]
[BlackElo "2757"]
[Annotator "ChessBase"]
[PlyCount "80"]
[EventDate "2025.??.??"]
[EventType "blitz"]
[TimeControl "300+2"]

1. Nf3 {[%emt 0:00:03]} Nf6 {[%emt 0:00:01]} 2. g3 {[%emt 0:00:02]} g6 {[%emt 0:00:00]} 3. Bg2 {[%emt 0:00:01]} Bg7 {[%emt 0:00:01]} 4. O-O {[%emt 0:00:02]} O-O {[%emt 0:00:02]} 5. d4 {[%emt 0:00:01]} d6 {[%emt 0:00:01]} 6. Nc3 {[%emt 0:00:02]} Nbd7 {[%emt 0:00:05]} 7. a4 {[%emt 0:00:01]} a5 {[%emt 0:00:05]} 8. b3 {[%emt 0:00:07]} d5 {[%emt 0:00:07]} ({RR} 8... Re8 9. Ba3 d5 10. Re1 c6 11. e4 Nxe4 12. Nxe4 dxe4 13. Rxe4 Nf6 14. Re1 Bg4 15. h3 Bxf3 16. Qxf3 e6 17. Rad1 Qb6 18. c4 Rad8 19. Qe3 Qa6 20. Qf3 h5 21. Bc1 Rd7 22. Rd3 Qb6 23. Red1 {Artemiev,V (2714)-Karjakin,S (2750) Moscow RUS 2023 ½-½}) ({RR} 8... Re8 9. Ba3 e5 10. dxe5 Ng4 11. Qd2 Ngxe5 12. Nxe5 Nxe5 13. Rad1 h5 14. h3 Bd7 15. Kh2 Qc8 16. Nd5 Qd8 17. Nxc7 Qxc7 18. Bxd6 Qb6 19. Bxe5 Rxe5 20. Qxd7 Rxe2 21. Qxb7 Qxb7 22. Bxb7 Rb8 23. Ba6 {Aradhya,G (2390)-Badrinath,S (2026) Bangalore IND 2024 ½-½ (92)}) ({RR} 8... c6 9. Ba3 Qc7 10. e4 Re8 11. Qd2 Bf8 12. Rfe1 e5 13. Rad1 Rb8 14. Qd3 Be7 15. h3 Nf8 16. Bb2 N8d7 17. g4 h6 18. Bc1 Bf8 19. Be3 Bg7 20. Qd2 Kh7 21. g5 hxg5 22. Nxg5+ Kg8 23. f4 {Aravindh,C (2607)-Halmeenmaki,T (2114) La Roda ESP 2023 1-0 (33)}) 9. Re1 $146 {[%emt 0:00:05]} ({RR} 9. Ba3 c6 10. Ne1 Re8 11. f4 Ng4 12. Bc1 c5 13. e3 cxd4 14. exd4 Nb6 15. h3 Nf6 16. Kh2 Ne4 17. Ne2 Nd6 18. g4 Bd7 19. Ra2 Rc8 20. Bd2 Ra8 21. Nd3 Bc6 22. c3 Nd7 23. Be1 Nf6 {Willemze,T (2371)-De Winter,A (2360) Oer-Erkenschwick GER 2023 1-0 (64)}) ({RR} 9. Ba3 c6 10. Ne1 Re8 11. f4 Ng4 12. Bc1 c5 13. e3 cxd4 14. exd4 Nb6 15. h3 Nf6 16. Kh2 Ne4 17. Ne2 Nd6 18. g4 Bd7 19. Ra2 Rc8 20. Bd2 Ra8 21. Nd3 Bc6 22. c3 Nd7 23. Be1 Nf6 {Willemze,T (2371)-De Winter,A (2360) Oer-Erkenschwick GER 2023 1-0 (64)}) 9... c6 {[%emt 0:00:04]} 10. Bb2 {[%emt 0:00:04]} Ne4 {[%emt 0:00:25]} 11. Nxe4 {[%emt 0:00:07]} dxe4 {[%emt 0:00:00]} 12. Ng5 {[%emt 0:00:10]} e3 {[%emt 0:00:02]} 13. fxe3 {[%emt 0:00:01]} Bh6 {[%emt 0:00:09]} 14. Ne4 {[%emt 0:00:21]} Bxe3+ {[%emt 0:00:10]} 15. Kh1 {[%emt 0:00:01]} Nb6 {[%emt 0:00:37]} 16. Qd3 {[%emt 0:00:11]} Bh6 {[%emt 0:00:02]} 17. Nf2 {[%emt 0:00:27]} Bg7 {[%emt 0:00:47]} 18. e4 {[%emt 0:00:01]} e5 {[%emt 0:00:11]} 19. dxe5 {[%emt 0:00:17]} Qc7 {[%emt 0:00:41]} 20. Rad1 {[%emt 0:00:31]} Nd7 {[%emt 0:00:24]} 21. e6 {[%emt 0:00:49]} Nc5 {[%emt 0:00:11]} 22. Qe3 {[%emt 0:00:09]} Bxb2 {[%emt 0:00:19]} 23. Qxc5 {[%emt 0:00:02]} Bxe6 {[%emt 0:00:01]} 24. c3 {[%emt 0:00:12]} b6 {[%emt 0:00:12]} 25. Qe3 {[%emt 0:00:13]} Ba3 {[%emt 0:00:01]} 26. e5 {[%emt 0:00:25]} Bc5 {[%emt 0:00:11]} 27. Qf4 {[%emt 0:00:01]} Bxf2 {[%emt 0:00:11]} 28. Qxf2 {[%emt 0:00:02]} Bxb3 {[%emt 0:00:02]} 29. Rd6 {[%emt 0:00:05]} Bxa4 {[%emt 0:00:09]} 30. c4 {[%emt 0:00:19]} Rae8 {[%emt 0:00:05]} 31. Qd2 {[%emt 0:00:31]} Re7 {[%emt 0:00:31]} 32. Ra1 {[%emt 0:00:14]} b5 {[%emt 0:00:02]} 33. Qd4 {[%emt 0:00:20]} Bb3 {[%emt 0:00:07]} 34. c5 {[%emt 0:00:10]} a4 {[%emt 0:00:02]} 35. h4 {[%emt 0:00:02]} Rfe8 {[%emt 0:00:06]} 36. Re1 {[%emt 0:00:02]} Qa5 {[%emt 0:00:02]} 37. Rf1 {[%emt 0:00:02]} Rxe5 {[%emt 0:00:07]} 38. Bxc6 {[%emt 0:00:01]} Re1 {[%emt 0:00:01]} 39. Qf4 {[%emt 0:00:02]} Rxf1+ {[%emt 0:00:01]} 40. Qxf1 {[%emt 0:00:01]} Re1 {[%emt 0:00:01]} 0-1

[Event "GCT Superbet Blitz Poland 2025"]
[Site "Warsaw"]
[Date "2025.04.30"]
[Round "16"]
[White "Aronian, Levon"]
[Black "Vachier-Lagrave, Maxime"]
[Result "1/2-1/2"]
[ECO "D85"]
[WhiteElo "2747"]
[BlackElo "2722"]
[Annotator "ChessBase"]
[PlyCount "123"]
[EventDate "2025.??.??"]
[EventType "blitz"]
[TimeControl "300+2"]

1. d4 {[%emt 0:00:01]} Nf6 {[%emt 0:00:01]} 2. c4 {[%emt 0:00:01]} g6 {[%emt 0:00:01]} 3. Nc3 {[%emt 0:00:01]} d5 {[%emt 0:00:01]} 4. Nf3 {[%emt 0:00:01]} Bg7 {[%emt 0:00:01]} 5. cxd5 {[%emt 0:00:01]} Nxd5 {[%emt 0:00:01]} 6. e4 {[%emt 0:00:01]} Nxc3 {[%emt 0:00:01]} 7. bxc3 {[%emt 0:00:01]} c5 {[%emt 0:00:01]} 8. Rb1 {[%emt 0:00:04]} O-O {[%emt 0:00:03]} 9. Be2 {[%emt 0:00:02]} cxd4 {[%emt 0:00:01]} 10. cxd4 {[%emt 0:00:01]} Qa5+ {[%emt 0:00:01]} 11. Bd2 {[%emt 0:00:01]} Qxa2 {[%emt 0:00:01]} 12. O-O {[%emt 0:00:02]} Bg4 {[%emt 0:00:02]} 13. Rxb7 {[%emt 0:00:07]} Bxf3 {[%emt 0:00:01]} 14. Bxf3 {[%emt 0:00:03]} Bxd4 {[%emt 0:00:01]} 15. Bb4 {[%emt 0:00:05]} Nc6 {[%emt 0:00:28]} ({RR} 15... Rd8 16. Qc1 Na6 17. Bxe7 Rac8 18. Qf4 ({RR} 18. Qg5 Nc5 19. Bxc5 Bxc5 20. Bg4 Rd2 21. Rxf7 Kxf7 22. Bxc8 Bxf2+ 23. Kh1 Qc4 24. Qf4+ Kg7 25. Qe5+ Kh6 26. Qf4+ Kg7 27. Qe5+ Kh6 28. Qf4+) 18... Nc5 19. Bxd8 ({RR} 19. Bxc5 Rxc5 ({RR} 19... Bxc5 20. Bg4 Rc6 21. e5 Rd2 22. Qh6 Rd8 23. Qf4 Rd2 24. Qh6) 20. Bd1 Be5 21. Qh4 ({RR} 21. Qe3 Qa5 22. Bb3 Rc7) 21... Rf8 22. Bb3 Qa5 23. Qe7 Rc7 24. Rxc7 Qxc7 25. Qxc7 Bxc7) 19... Nxb7 20. Bf6 Bxf6 21. Qxf6 Nc5 ({RR} 21... Qe6 22. Qd4 Qb6 23. Qxb6 axb6 24. Rb1 Nc5 25. h4 Re8 26. Rxb6 Nxe4) 22. h4 Qe6 23. Qxe6 ({RR} 23. Qa1 Nxe4 24. Re1 f5 25. Bxe4 fxe4 26. Qxa7 Re8 27. Qa4 Re7 28. Re3 Qd5 29. Qc2 Kf7 30. Qe2 Re6 31. Ra3 Re7 32. Qg4 Qf5 33. Qd1 Qe5 34. Qd8 Qc5 35. Re3 Qc1+ 36. Kh2 Qc7+ 37. Qxc7 Rxc7) 23... Nxe6 ({RR} 23... fxe6 24. Ra1 Rc7 25. Ra5 e5) 24. Ra1 Rc7 ({RR} 24... Nc5 25. Rxa7 Re8 26. g3 Nxe4 27. Bxe4 Rxe4 28. Kg2 h5 29. Ra5 Kg7 30. Kf3 Rb4 31. Kg2) 25. Kh2 Kg7 26. Kg3 Kf6 27. Bg4 Nc5 28. Kf4 Re7 29. f3 h5 30. Bh3 {Khusenkhojaev,M (2283)-Kulaots,K (2506) Budapest HUN 2024 ½-½ (35)}) 16. Bxe7 {[%emt 0:00:02]} Nxe7 {[%emt 0:01:10]} 17. Qxd4 {[%emt 0:00:02]} Qe6 {[%emt 0:00:01]} 18. e5 $146 {[%emt 0:00:50]} ({RR} 18. Rd1 Nc6 19. Qa1 Rab8 20. Rbd7 Ne5 21. Rxa7 Nxf3+ 22. gxf3 Rb5 23. Rd5 Rxd5 24. exd5 Qxd5 25. Qf6 Re8 {½-½ (25) Polak,T (2528)-Ftacnik,L (2507) Czech Republic 2022}) ({RR} 18. Bd1 Nc6 19. Qc5 Rac8 20. Bb3 Qxe4 21. Bd5 Qd4 22. Qxd4 Nxd4 {½-½ (22) Zhou,J (2462)-Volokitin,A (2606) Riga 2021}) ({RR} 18. Bd1 Nc6 19. Qc5 Rac8 20. Bb3 Qxe4 21. Bd5 Qd4 22. Qxd4 Nxd4 {½-½ (22) Zhou,J (2462)-Volokitin,A (2606) Riga 2021}) 18... Nc6 {[%emt 0:00:11]} 19. Bxc6 {[%emt 0:00:10]} Qxc6 {[%emt 0:00:01]} 20. Rxa7 {[%emt 0:00:01]} Rxa7 {[%emt 0:00:02]} 21. Qxa7 {[%emt 0:00:01]} Ra8 {[%emt 0:00:06]} 22. Qe3 {[%emt 0:00:03]} h5 {[%emt 0:00:09]} 23. h3 {[%emt 0:00:01]} Qd5 {[%emt 0:00:06]} 24. Rc1 {[%emt 0:00:13]} Re8 {[%emt 0:00:02]} 25. Rc5 {[%emt 0:00:07]} Qe6 {[%emt 0:00:01]} 26. Kh2 {[%emt 0:00:11]} Kg7 {[%emt 0:00:03]} 27. Qd4 {[%emt 0:00:07]} Ra8 {[%emt 0:00:35]} 28. Rd5 {[%emt 0:00:04]} Ra4 {[%emt 0:00:05]} 29. Qxa4 {[%emt 0:00:14]} Qxd5 {[%emt 0:00:01]} 30. Qf4 {[%emt 0:00:01]} Kg8 {[%emt 0:00:16]} 31. Qf6 {[%emt 0:00:14]} Qe4 {[%emt 0:00:16]} 32. Qd8+ {[%emt 0:00:56]} Kg7 {[%emt 0:00:02]} 33. Qg5 {[%emt 0:00:01]} h4 {[%emt 0:00:17]} 34. Qf6+ {[%emt 0:00:46]} Kg8 {[%emt 0:00:02]} 35. g4 {[%emt 0:00:16]} hxg3+ {[%emt 0:00:04]} 36. Kxg3 {[%emt 0:00:01]} Qd4 {[%emt 0:00:02]} 37. Qf4 {[%emt 0:00:12]} Qd1 {[%emt 0:00:06]} 38. Kh2 {[%emt 0:00:05]} Qd5 {[%emt 0:00:04]} 39. h4 {[%emt 0:00:05]} Qd1 {[%emt 0:00:01]} 40. Qe4 {[%emt 0:00:17]} Kg7 {[%emt 0:00:06]} 41. Qf4 {[%emt 0:00:02]} Kg8 {[%emt 0:00:01]} 42. Kg2 {[%emt 0:00:17]} Qd3 {[%emt 0:00:06]} 43. Qf3 {[%emt 0:00:08]} Qd4 {[%emt 0:00:04]} 44. Qf6 {[%emt 0:00:02]} Qg4+ {[%emt 0:00:02]} 45. Kh2 {[%emt 0:00:00]} Qe2 {[%emt 0:00:24]} 46. Qd8+ {[%emt 0:00:07]} Kg7 {[%emt 0:00:01]} 47. Qd4 {[%emt 0:00:02]} Kg8 {[%emt 0:00:04]} 48. Kg3 {[%emt 0:00:01]} Qe1 {[%emt 0:00:05]} 49. Kg2 {[%emt 0:00:05]} Qe2 {[%emt 0:00:02]} 50. Qf4 {[%emt 0:00:03]} Qd3 {[%emt 0:00:04]} 51. Kh2 {[%emt 0:00:09]} Qe2 {[%emt 0:00:02]} 52. Kg3 {[%emt 0:00:02]} Qd1 {[%emt 0:00:02]} 53. Qf3 {[%emt 0:00:05]} Qd4 {[%emt 0:00:06]} 54. Qe3 {[%emt 0:00:05]} Qc4 {[%emt 0:00:05]} 55. Qf4 {[%emt 0:00:02]} Qe2 {[%emt 0:00:05]} 56. Kh2 {[%emt 0:00:02]} Kg7 {[%emt 0:00:07]} 57. Kg2 {[%emt 0:00:01]} Kg8 {[%emt 0:00:01]} 58. Qd4 {[%emt 0:00:01]} Kh7 {[%emt 0:00:13]} 59. Qf4 {[%emt 0:00:03]} Kg8 {[%emt 0:00:03]} 60. Qd4 {[%emt 0:00:01]} Kh7 {[%emt 0:00:01]} 61. Qf4 {[%emt 0:00:01]} Kg8 {[%emt 0:00:01]} 62. Qd4 {[%emt 0:00:02]} 1/2-1/2

[Event "GCT Superbet Blitz Poland 2025"]
[Site "Warsaw"]
[Date "2025.04.30"]
[Round "16"]
[White "Deac, Bogdan-Daniel"]
[Black "Fedoseev, Vladimir"]
[Result "1/2-1/2"]
[ECO "B33"]
[WhiteElo "2668"]
[BlackElo "2739"]
[Annotator "ChessBase"]
[PlyCount "82"]
[EventDate "2025.??.??"]
[EventType "blitz"]
[TimeControl "300+2"]

1. e4 {[%emt 0:00:03]} c5 {[%emt 0:00:06]} 2. Nf3 {[%emt 0:00:04]} Nc6 {[%emt 0:00:01]} 3. d4 {[%emt 0:00:02]} cxd4 {[%emt 0:00:02]} 4. Nxd4 {[%emt 0:00:01]} Nf6 {[%emt 0:00:01]} 5. Nc3 {[%emt 0:00:01]} e5 {[%emt 0:00:01]} 6. Ndb5 {[%emt 0:00:02]} d6 {[%emt 0:00:01]} 7. Bg5 {[%emt 0:00:02]} a6 {[%emt 0:00:01]} 8. Na3 {[%emt 0:00:01]} b5 {[%emt 0:00:02]} 9. Nd5 {[%emt 0:00:03]} Be7 {[%emt 0:00:01]} 10. Bxf6 {[%emt 0:00:02]} Bxf6 {[%emt 0:00:01]} 11. c3 {[%emt 0:00:01]} Bg5 {[%emt 0:00:02]} 12. Nc2 {[%emt 0:00:03]} Ne7 {[%emt 0:00:02]} 13. Ncb4 {[%emt 0:01:03]} O-O {[%emt 0:00:06]} 14. a4 {[%emt 0:00:06]} bxa4 {[%emt 0:00:03]} 15. Rxa4 {[%emt 0:02:01]} Nxd5 {[%emt 0:00:18]} 16. Nxd5 {[%emt 0:00:04]} a5 {[%emt 0:00:23]} 17. Bc4 {[%emt 0:00:16]} Bd7 {[%emt 0:00:09]} 18. Ra3 {[%emt 0:00:39]} a4 {[%emt 0:00:46]} 19. O-O {[%emt 0:00:02]} Kh8 {[%emt 0:00:07]} 20. b3 {[%emt 0:00:08]} axb3 {[%emt 0:01:02]} 21. Rxa8 {[%emt 0:00:02]} Qxa8 {[%emt 0:00:01]} 22. Nb6 {[%emt 0:00:02]} Qc6 {[%emt 0:01:02]} 23. Nxd7 {[%emt 0:00:02]} Qxd7 {[%emt 0:00:01]} 24. Qxb3 {[%emt 0:00:01]} g6 $146 {[%emt 0:00:06]} ({RR} 24... Qc7 25. Bd5 g6 26. g3 Rb8 27. Qa3 Kg7 28. Kg2 Bd2 29. Rd1 Bg5 30. h4 Be7 31. Rd3 Qb6 32. Rf3 Rf8 33. Qa2 f5 34. Qa4 fxe4 35. Rxf8 Kxf8 36. Qd7 Qd8 37. Qe6 Kg7 38. Qf7+ Kh8 39. Bxe4 {Triapishko,A (2506)-Das,S (2431) Chess.com INT 2020 1-0 (46)}) ({RR} 24... Qc7 25. Bd5 g6 26. g3 Rb8 27. Qa3 Kg7 28. Kg2 Bd2 29. Rd1 Bg5 30. h4 Be7 31. Rd3 Qb6 32. Rf3 Rf8 33. Qa2 f5 34. Qa4 fxe4 35. Rxf8 Kxf8 36. Qd7 Qd8 37. Qe6 Kg7 38. Qf7+ Kh8 39. Bxe4 {Triapishko,A (2506)-Das,S (2431) Chess.com INT 2020 1-0 (46)}) 25. Bd5 {[%emt 0:00:15]} f5 {[%emt 0:00:01]} 26. c4 {[%emt 0:00:38]} Qa7 {[%emt 0:00:04]} 27. exf5 {[%emt 0:00:06]} gxf5 {[%emt 0:00:08]} 28. g3 {[%emt 0:00:02]} Bd8 {[%emt 0:00:38]} 29. Kg2 {[%emt 0:00:03]} Bb6 30. Qc2 {[%emt 0:00:02]} Bd4 {[%emt 0:00:07]} 31. Rb1 {[%emt 0:00:01]} Qg7 {[%emt 0:00:01]} 32. Qe2 {[%emt 0:00:03]} e4 {[%emt 0:00:04]} 33. Rb7 {[%emt 0:00:01]} Qg6 {[%emt 0:00:01]} 34. Qd2 {[%emt 0:00:02]} Be5 {[%emt 0:00:03]} 35. Kf1 {[%emt 0:00:01]} Qh5 {[%emt 0:00:10]} 36. Kg1 {[%emt 0:00:02]} Qg6 {[%emt 0:00:08]} 37. Qe2 {[%emt 0:00:01]} Qg5 {[%emt 0:00:03]} 38. Kg2 {[%emt 0:00:02]} Qg6 {[%emt 0:00:01]} 39. Kg1 {[%emt 0:00:01]} Qg5 {[%emt 0:00:00]} 40. Kg2 {[%emt 0:00:01]} Qg6 {[%emt 0:00:03]} 41. Kg1 {[%emt 0:00:01]} Qg5 {[%emt 0:00:01]} 1/2-1/2

[Event "GCT Superbet Blitz Poland 2025"]
[Site "Warsaw"]
[Date "2025.04.30"]
[Round "16"]
[White "Gavrilescu, David"]
[Black "Duda, Jan-Krzysztof"]
[Result "0-1"]
[ECO "B83"]
[WhiteElo "2554"]
[BlackElo "2739"]
[Annotator "ChessBase"]
[PlyCount "216"]
[EventDate "2025.??.??"]
[EventType "blitz"]
[TimeControl "300+2"]

1. e4 {[%emt 0:00:02]} c5 {[%emt 0:00:00]} 2. Nf3 {[%emt 0:00:01]} e6 {[%emt 0:00:02]} 3. Be2 {[%emt 0:00:02]} Nc6 {[%emt 0:00:01]} 4. O-O {[%emt 0:00:02]} Nf6 {[%emt 0:00:01]} 5. Nc3 {[%emt 0:00:01]} d6 {[%emt 0:00:02]} 6. d4 {[%emt 0:00:02]} cxd4 {[%emt 0:00:02]} 7. Nxd4 {[%emt 0:00:02]} Be7 {[%emt 0:00:01]} 8. Nxc6 {[%emt 0:00:03]} bxc6 {[%emt 0:00:01]} 9. Qd3 {[%emt 0:00:01]} O-O {[%emt 0:00:02]} 10. Qg3 {[%emt 0:00:02]} d5 {[%emt 0:00:03]} 11. Bh6 {[%emt 0:00:12]} Ne8 {[%emt 0:00:01]} 12. Bf4 {[%emt 0:00:09]} a5 {[%emt 0:00:05]} ({RR} 12... Bh4 13. Qf3 Bg5 14. Bxg5 Qxg5 15. Na4 Nf6 16. Bd3 e5 17. Rfe1 Re8 18. Qg3 h6 19. c3 a5 20. Rad1 Rb8 21. b3 Nh5 22. Qxg5 hxg5 23. Bc2 Nf6 24. h3 Kf8 25. Re3 g6 26. Rde1 Nd7 27. Rg3 {Firouzja,A (2777)-Sarana,A (2682) Douglas IOM 2023 ½-½ (58)}) 13. Rad1 {[%emt 0:00:12]} a4 $146 {[%emt 0:00:16]} ({RR} 13... Bd6 14. e5 Be7 15. Ne4 Ba6 16. c4 Qb6 17. Ng5 Bxc4 18. Bxc4 dxc4 19. Rd7 Ra7 20. Be3 Bc5 21. Bxc5 Qxc5 22. Ne4 Qb6 23. Nf6+ Kh8 24. Qa3 c5 25. Rxa7 Qxa7 26. Ne4 Nc7 27. g3 Nd5 28. Qxc5 {Kramnik,V (2753)-Makarian,R (2545) chess.com INT 2023 ½-½ (48)}) ({RR} 13... Bd6 14. e5 Be7 15. Ne4 Ba6 16. c4 Qb6 17. Ng5 Bxc4 18. Bxc4 dxc4 19. Rd7 Ra7 20. Be3 Bc5 21. Bxc5 Qxc5 22. Ne4 Qb6 23. Nf6+ Kh8 24. Qa3 c5 25. Rxa7 Qxa7 26. Ne4 Nc7 27. g3 Nd5 28. Qxc5 {Kramnik,V (2753)-Makarian,R (2545) chess.com INT 2023 ½-½ (48)}) 14. b3 {[%emt 0:00:27]} a3 {[%emt 0:00:02]} 15. exd5 {[%emt 0:00:16]} cxd5 {[%emt 0:00:05]} 16. Nb5 {[%emt 0:00:02]} Ba6 {[%emt 0:00:15]} 17. c4 {[%emt 0:00:24]} Bxb5 {[%emt 0:00:03]} 18. cxb5 {[%emt 0:00:01]} Bd6 {[%emt 0:00:08]} 19. Rc1 {[%emt 0:00:12]} Qb8 {[%emt 0:00:02]} 20. Bxd6 {[%emt 0:00:11]} Nxd6 {[%emt 0:00:01]} 21. Qd3 {[%emt 0:00:08]} Ra7 {[%emt 0:00:21]} 22. b4 {[%emt 0:00:25]} Rb7 {[%emt 0:00:44]} 23. Rc5 {[%emt 0:00:26]} g6 {[%emt 0:00:16]} 24. g3 {[%emt 0:00:10]} Rd8 {[%emt 0:00:09]} 25. Qxa3 {[%emt 0:00:18]} Nxb5 {[%emt 0:00:03]} 26. Rxb5 {[%emt 0:00:01]} Rxb5 {[%emt 0:00:01]} 27. Bxb5 {[%emt 0:00:02]} Qxb5 {[%emt 0:00:02]} 28. Qb3 {[%emt 0:00:01]} d4 {[%emt 0:00:48]} 29. a4 {[%emt 0:00:06]} Qe2 {[%emt 0:00:02]} 30. b5 {[%emt 0:00:07]} d3 {[%emt 0:00:01]} 31. b6 {[%emt 0:00:11]} d2 {[%emt 0:00:04]} 32. Rd1 {[%emt 0:00:18]} Rd3 {[%emt 0:00:07]} 33. Qb1 {[%emt 0:00:16]} Rd7 {[%emt 0:00:45]} 34. Qc2 {[%emt 0:00:10]} e5 {[%emt 0:00:32]} 35. b7 {[%emt 0:00:20]} Rxb7 {[%emt 0:00:05]} 36. Qxd2 {[%emt 0:00:07]} Qxd2 {[%emt 0:00:22]} 37. Rxd2 {[%emt 0:00:01]} Rb1+ {[%emt 0:00:01]} 38. Kg2 {[%emt 0:00:01]} Ra1 {[%emt 0:00:01]} 39. Rd5 {[%emt 0:00:02]} e4 {[%emt 0:00:05]} 40. Rd4 {[%emt 0:00:07]} f5 {[%emt 0:00:03]} 41. g4 {[%emt 0:00:17]} Kg7 {[%emt 0:00:05]} 42. gxf5 {[%emt 0:00:04]} gxf5 {[%emt 0:00:01]} 43. Kg3 {[%emt 0:00:03]} Ra3+ {[%emt 0:00:11]} 44. Kg2 {[%emt 0:00:13]} Kg6 {[%emt 0:00:05]} 45. Rb4 {[%emt 0:00:05]} Kg5 {[%emt 0:00:03]} 46. Rc4 {[%emt 0:00:03]} h5 {[%emt 0:00:02]} 47. h3 {[%emt 0:00:03]} Ra2 {[%emt 0:00:06]} 48. Kf1 {[%emt 0:00:03]} Kh4 {[%emt 0:00:03]} 49. Kg2 {[%emt 0:00:02]} Kg5 {[%emt 0:00:08]} 50. Kf1 {[%emt 0:00:02]} Ra1+ {[%emt 0:00:05]} 51. Kg2 {[%emt 0:00:01]} Ra3 {[%emt 0:00:01]} 52. Rb4 {[%emt 0:00:02]} Ra2 {[%emt 0:00:07]} 53. Kf1 {[%emt 0:00:02]} Kf4 {[%emt 0:00:01]} 54. Rc4 {[%emt 0:00:03]} h4 {[%emt 0:00:03]} 55. Rb4 {[%emt 0:00:01]} Ra3 {[%emt 0:00:02]} 56. Kg2 {[%emt 0:00:01]} Ra1 {[%emt 0:00:01]} 57. Rc4 {[%emt 0:00:01]} Ra2 {[%emt 0:00:02]} 58. Kf1 {[%emt 0:00:01]} Ke5 {[%emt 0:00:02]} 59. Rb4 {[%emt 0:00:01]} f4 {[%emt 0:00:03]} 60. Rb5+ {[%emt 0:00:03]} Kd4 {[%emt 0:00:01]} 61. Rb4+ {[%emt 0:00:03]} Kd3 {[%emt 0:00:02]} 62. Rb3+ {[%emt 0:00:04]} Kc4 {[%emt 0:00:02]} 63. Rb8 {[%emt 0:00:02]} Rxa4 {[%emt 0:00:04]} 64. Rd8 {[%emt 0:00:03]} f3 {[%emt 0:00:01]} 65. Ke1 {[%emt 0:00:02]} Ra2 {[%emt 0:00:02]} 66. Rd7 {[%emt 0:00:03]} Kc3 {[%emt 0:00:02]} 67. Rc7+ {[%emt 0:00:02]} Kd4 {[%emt 0:00:01]} 68. Rd7+ {[%emt 0:00:01]} Ke5 {[%emt 0:00:01]} 69. Rh7 {[%emt 0:00:02]} Ra1+ {[%emt 0:00:03]} 70. Kd2 {[%emt 0:00:02]} Ra2+ {[%emt 0:00:02]} 71. Ke1 {[%emt 0:00:01]} Kd4 {[%emt 0:00:03]} 72. Rd7+ {[%emt 0:00:02]} Kc4 {[%emt 0:00:01]} 73. Rd8 {[%emt 0:00:05]} Re2+ {[%emt 0:00:04]} 74. Kf1 {[%emt 0:00:01]} Rc2 {[%emt 0:00:01]} 75. Ke1 {[%emt 0:00:02]} Kc3 {[%emt 0:00:02]} 76. Rc8+ {[%emt 0:00:02]} Kb2 {[%emt 0:00:01]} 77. Rb8+ {[%emt 0:00:02]} Kc1 {[%emt 0:00:02]} 78. Rh8 {[%emt 0:00:03]} Re2+ {[%emt 0:00:02]} 79. Kf1 {[%emt 0:00:01]} Rd2 {[%emt 0:00:02]} 80. Rc8+ {[%emt 0:00:02]} Kd1 {[%emt 0:00:03]} 81. Ra8 {[%emt 0:00:03]} Re2 {[%emt 0:00:02]} 82. Ra1+ {[%emt 0:00:01]} Kd2 {[%emt 0:00:01]} 83. Ra2+ {[%emt 0:00:01]} Kd3 {[%emt 0:00:01]} 84. Ra3+ {[%emt 0:00:01]} Kd4 {[%emt 0:00:04]} 85. Ra4+ {[%emt 0:00:01]} Kc3 {[%emt 0:00:01]} 86. Ra8 {[%emt 0:00:05]} Rd2 {[%emt 0:00:02]} 87. Rc8+ {[%emt 0:00:01]} Kd3 {[%emt 0:00:02]} 88. Rd8+ {[%emt 0:00:02]} Kc2 {[%emt 0:00:01]} 89. Rc8+ {[%emt 0:00:01]} Kb1 {[%emt 0:00:01]} 90. Ke1 {[%emt 0:00:01]} Re2+ {[%emt 0:00:01]} 91. Kf1 {[%emt 0:00:01]} Rc2 {[%emt 0:00:04]} 92. Rb8+ {[%emt 0:00:02]} Kc1 {[%emt 0:00:01]} 93. Re8 {[%emt 0:00:03]} Kd2 {[%emt 0:00:04]} 94. Rd8+ {[%emt 0:00:01]} Kc1 {[%emt 0:00:01]} 95. Re8 {[%emt 0:00:01]} Rc4 {[%emt 0:00:01]} 96. Ke1 {[%emt 0:00:03]} Kc2 {[%emt 0:00:01]} 97. Rd8 {[%emt 0:00:02]} Rb4 {[%emt 0:00:05]} 98. Rc8+ {[%emt 0:00:02]} Kd3 {[%emt 0:00:01]} 99. Rd8+ {[%emt 0:00:01]} Rd4 {[%emt 0:00:01]} 100. Rh8 {[%emt 0:00:05]} e3 {[%emt 0:00:04]} 101. fxe3 {[%emt 0:00:05]} Kxe3 {[%emt 0:00:01]} 102. Re8+ {[%emt 0:00:02]} Kf4 {[%emt 0:00:01]} 103. Rg8 {[%emt 0:00:03]} Ke3 {[%emt 0:00:04]} 104. Re8+ {[%emt 0:00:01]} Re4 {[%emt 0:00:01]} 105. Rxe4+ {[%emt 0:00:03]} Kxe4 {[%emt 0:00:01]} 106. Kf1 {[%emt 0:00:02]} Kf5 {[%emt 0:00:03]} 107. Kg1 {[%emt 0:00:01]} Ke5 {[%emt 0:00:01]} 108. Kf1 {[%emt 0:00:02]} Ke4 {[%emt 0:00:01]} 0-1